Workbook

Sheet Feuil1 (hidden)
A1: Champ calculé
A2: Ordre de résolution | B2: Champ | C2: Formule
A3: 2 | B3: Champ2 | C3: ='Doit rester'-'Sous-total AP'
A4: 5 | B4: Champ5 | C4: ='Sous-total AP'-RG
A5: 8 | B5: Restes (-RG | C5: ='Doit rester (sans RG)'-Champ5
A7: Élément calculé
A8: Ordre de résolution | B8: Élément | C8: Formule
A11: Commentaire : | B11: Quand une cellule est mise à jour avec plus d'une formule,
B12: la valeur est établie par la dernière formule dans l'ordre de résolution.
B14: Pour modifier l'ordre de résolution de plusieurs champs ou éléments calculés,
B15: dans l’onglet Options, groupe Calculs, cliquez sur Champs, éléments et jeux, puis sur Ordre de résolution.

Sheet Stock
B1: EARL DU MESNIL Stock EDV
B3: Date : | E3: EDV_11_2016 | U3: Calcul de l'évaporation de la RG
B4: Total AP
B5: Avec RG* | F5: Sans RG | I5: RG seul
B6: =GETPIVOTDATA("Total AP",$B$11) -> 867.2524 | F6: =GETPIVOTDATA("Total AP (-RG) ",$B$11) -> 854.9981 | I6: =GETPIVOTDATA("RG ",$B$11) -> 12.2543 | U6: % évapo : | V6: 0.0365
F7: Evaporation | U7: Manquants | V7: RG après evapo
B8: Manquants | E8: % | F8: Manquants | H8: % | I8: Manquants | K8: %
B9: =GETPIVOTDATA("Manquants (avec RG) ",$B$11) -> 15.5346 | E9: =SUM(B9/GETPIVOTDATA("Doit rester ",$B$11)) -> 0.01759722334 | F9: =GETPIVOTDATA("Manquants (-RG) ",$B$11) -> 15.5346 | H9: =F9/GETPIVOTDATA("Doit rester (-RG) ",$B$11) -> 0.01784493564 | I9: =GETPIVOTDATA("Manquants RG ",$B$11) -> 0 | K9: =I9/GETPIVOTDATA("RG N-1 ",$B$11) -> 0 | U9: =GETPIVOTDATA("RG N-1 ",$B$11)*V6 -> 0.44728195 | V9: =GETPIVOTDATA("RG N-1 ",$B$11)-U9 -> 11.80701805
B10: *Réserve de Gestion | L10: Total AP avec réserve de gestion | O10: Total AP sans réserve de gestion | R10: Réserve de gestion seul
B11: Cru | C11: Lieu | D11: Récolte | E11: Lot | F11: N° Chai | G11: Capacité des fûts | H11: Nbre | I11: Vidange | J11: Vol total (HL) | K11: Degré | L11: Doit rester | M11: Total AP | N11: Manquants (avec RG) | O11: Doit rester (-RG) | P11: Total AP (-RG) | Q11: Manquants (-RG) | R11: RG N-1 | S11: RG | T11: Manquants RG
B12: PC | C12: STE | D12: 93 | E12: C 010 | F12: STE 2 | G12: VID/2,50 | H12: 1 | I12: 2.26 | J12: 2.26 | K12: 0.42 | L12: 0.9492 | M12: 0.9492 | N12: 0 | O12: 0.9492 | P12: 0.9492 | Q12: 0 | T12: 0
D13: Total 93 | H13: 1 | I13: 2.26 | J13: 2.26 | K13: 0.42 | L13: 0.9492 | M13: 0.9492 | N13: 0 | O13: 0.9492 | P13: 0.9492 | Q13: 0 | T13: 0
D14: 10 | E14: H | F14: STE 2 | G14: VID/4,00 | H14: 0 | I14: 0 | J14: 0 | L14: 0 | M14: 0 | N14: 0 | O14: 0 | P14: 0 | Q14: 0 | T14: 0
D15: Total 10 | H15: 0 | I15: 0 | J15: 0 | L15: 0 | M15: 0 | N15: 0 | O15: 0 | P15: 0 | Q15: 0 | T15: 0
D16: 11 | E16: H | F16: STE 2 | G16: 5.1 | H16: 2 | J16: 10.2 | K16: 0.688 | M16: 7.0176 | N16: -7.0176 | O16: 0 | P16: 7.0176 | Q16: -7.0176 | T16: 0
G17: 5 | H17: 5 | J17: 25 | K17: 0.688 | M17: 17.2 | N17: -17.2 | O17: 0 | P17: 17.2 | Q17: -17.2 | T17: 0
G18: 4.1 | H18: 1 | J18: 4.1 | K18: 0.688 | L18: 27.864 | M18: 2.8208 | N18: 25.0432 | O18: 19.8411 | P18: -5.2021 | Q18: 25.0432 | R18: 8.0229 | S18: 8.0229 | T18: 0
G19: VID/4,00 | H19: 1 | I19: 1.2 | J19: 1.2 | K19: 0.688 | M19: 0.8256 | N19: -0.8256 | O19: 0 | P19: 0.8256 | Q19: -0.8256 | T19: 0
D20: Total 11 | H20: 9 | I20: 1.2 | J20: 40.5 | K20: 0.688 | L20: 27.864 | M20: 27.864 | N20: 0 | O20: 19.8411 | P20: 19.8411 | Q20: 0 | R20: 8.0229 | S20: 8.0229 | T20: 0
D21: 12 | E21: RM | F21: STE 1 | G21: VID/ | H21: 0 | I21: 0 | J21: 0 | K21: 0.7 | L21: 2.2345 | M21: 0 | N21: 2.2345 | O21: 2.2345 | P21: 0 | Q21: 2.2345 | T21: 0
E22: H | F22: STE 2 | G22: VID/ | H22: 0 | J22: 0 | K22: 0.675 | L22: 0 | M22: 0 | N22: 0 | O22: 0 | P22: 0 | Q22: 0 | T22: 0
D23: Total 12 | H23: 0 | I23: 0 | J23: 0 | K23: 0.6875 | L23: 2.2345 | M23: 0 | N23: 2.2345 | O23: 2.2345 | P23: 0 | Q23: 2.2345 | T23: 0
D24: 13 | E24: RM | F24: STE 1 | G24: 3.6 | H24: 11 | J24: 39.6 | K24: 0.703 | M24: 27.8388 | N24: -27.8388 | O24: 0 | P24: 27.8388 | Q24: -27.8388 | T24: 0
G25: 3.5 | H25: 4 | J25: 14 | K25: 0.703 | L25: 75.0339 | M25: 9.842 | N25: 65.1919 | O25: 75.0339 | P25: 9.842 | Q25: 65.1919 | T25: 0
G26: 3.55 | H26: 13 | J26: 46.15 | K26: 0.703 | M26: 32.4435 | N26: -32.4435 | O26: 0 | P26: 32.4435 | Q26: -32.4435 | T26: 0
G27: 3.75 | H27: 1 | J27: 3.75 | K27: 0.703 | M27: 2.6363 | N27: -2.6363 | O27: 0 | P27: 2.6363 | Q27: -2.6363 | T27: 0
G28: VID/3,55 | H28: 1 | I28: 0.25 | J28: 0.25 | K28: 0.703 | M28: 0.1758 | N28: -0.1758 | O28: 0 | P28: 0.1758 | Q28: -0.1758 | T28: 0
E29: H | F29: STE 2 | G29: VID/ | H29: 0 | I29: 0 | J29: 0 | K29: 0.688 | L29: 16.8613 | M29: 16.8613 | N29: 0 | O29: 16.8613 | P29: 16.8613 | Q29: 0 | T29: 0
D30: Total 13 | H30: 30 | I30: 0.25 | J30: 103.75 | K30: 0.7005 | L30: 91.8952 | M30: 89.7977 | N30: 2.0975 | O30: 91.8952 | P30: 89.7977 | Q30: 2.0975 | T30: 0
D31: 14 | E31: RM | F31: STE 1 | G31: 3.5 | H31: 15 | J31: 52.5 | K31: 0.707 | M31: 37.1175 | N31: -37.1175 | O31: 0 | P31: 37.1175 | Q31: -37.1175 | T31: 0
G32: 3.55 | H32: 2 | J32: 7.1 | K32: 0.707 | M32: 5.0197 | N32: -5.0197 | O32: 0 | P32: 5.0197 | Q32: -5.0197 | T32: 0
G33: 3.45 | H33: 12 | J33: 41.4 | K33: 0.707 | L33: 75.757 | M33: 29.2698 | N33: 46.4872 | O33: 75.757 | P33: 29.2698 | Q33: 46.4872 | T33: 0
G34: VID/3,45 | H34: 1 | I34: 1.44 | J34: 1.44 | K34: 0.707 | M34: 1.0181 | N34: -1.0181 | O34: 0 | P34: 1.0181 | Q34: -1.0181 | T34: 0
E35: H | F35: STE 2 | G35: 5.2 | H35: 10 | J35: 52 | K35: 0.707 | M35: 36.764 | N35: -36.764 | O35: 0 | P35: 36.764 | Q35: -36.764 | T35: 0
G36: 4 | H36: 29 | J36: 116 | K36: 0.707 | L36: 148.165 | M36: 82.012 | N36: 66.153 | O36: 148.165 | P36: 82.012 | Q36: 66.153 | T36: 0
G37: 4.1 | H37: 9 | J37: 36.9 | K37: 0.707 | M37: 26.0883 | N37: -26.0883 | O37: 0 | P37: 26.0883 | Q37: -26.0883 | T37: 0
G38: VID/4,00 | H38: 1 | I38: 2.53 | J38: 2.53 | K38: 0.707 | M38: 1.7887 | N38: -1.7887 | O38: 0 | P38: 1.7887 | Q38: -1.7887 | T38: 0
G39: PE/4,00 | H39: 1 | I39: 4 | J39: 4 | K39: 0.378 | M39: 1.512 | N39: -1.512 | O39: 0 | P39: 1.512 | Q39: -1.512 | T39: 0
D40: Total 14 | H40: 80 | I40: 7.97 | J40: 313.87 | K40: 0.6704444444 | L40: 223.922 | M40: 220.5901 | N40: 3.3319 | O40: 223.922 | P40: 220.5901 | Q40: 3.3319 | T40: 0
D41: 94 | E41: C 010 | F41: STE 2 | G41: VID/3,40 | H41: 1 | I41: 2.65 | J41: 2.65 | K41: 0.574 | L41: 1.5211 | M41: 1.5211 | N41: 0 | O41: 1.5211 | P41: 1.5211 | Q41: 0 | T41: 0
D42: Total 94 | H42: 1 | I42: 2.65 | J42: 2.65 | K42: 0.574 | L42: 1.5211 | M42: 1.5211 | N42: 0 | O42: 1.5211 | P42: 1.5211 | Q42: 0 | T42: 0
D43: 15 | E43: RM | F43: STE 2 | G43: 4.03 | H43: 4 | J43: 16.12 | K43: 0.703 | M43: 11.3324 | N43: -11.3324 | O43: 0 | P43: 11.3324 | Q43: -11.3324 | T43: 0
F44: STE 1 | G44: 3.6 | H44: 1 | J44: 3.6 | K44: 0.703 | L44: 77.43 | M44: 2.5308 | N44: 74.8992 | O44: 77.43 | P44: 2.5308 | Q44: 74.8992 | T44: 0
G45: 3.5 | H45: 5 | J45: 17.5 | K45: 0.703 | M45: 12.3025 | N45: -12.3025 | O45: 0 | P45: 12.3025 | Q45: -12.3025 | T45: 0
G46: 3.55 | H46: 20 | J46: 71 | K46: 0.703 | M46: 49.913 | N46: -49.913 | O46: 0 | P46: 49.913 | Q46: -49.913 | T46: 0
E47: H | F47: STE 2 | G47: 4.1 | H47: 6 | J47: 24.6 | K47: 0.712 | L47: 130.4412 | M47: 17.5152 | N47: 112.926 | O47: 130.4412 | P47: 17.5152 | Q47: 112.926 | T47: 0
G48: 4.03 | H48: 37 | J48: 149.11 | K48: 0.712 | M48: 106.1663 | N48: -106.1663 | O48: 0 | P48: 106.1663 | Q48: -106.1663 | T48: 0
G49: T 61 | I49: 4.04 | J49: 4.04 | K49: 0.712 | M49: 2.8765 | N49: -2.8765 | O49: 0 | P49: 2.8765 | Q49: -2.8765 | T49: 0
G50: T80 | I50: 3.34 | J50: 3.34 | K50: 0.712 | M50: 2.3781 | N50: -2.3781 | O50: 0 | P50: 2.3781 | Q50: -2.3781 | T50: 0
G51: VID/4,03 | I51: 2.26 | J51: 2.26 | K51: 0.712 | M51: 1.6091 | N51: -1.6091 | O51: 0 | P51: 1.6091 | Q51: -1.6091 | T51: 0
D52: Total 15 | H52: 73 | I52: 9.64 | J52: 291.57 | K52: 0.708 | L52: 207.8712 | M52: 206.6239 | N52: 1.2473 | O52: 207.8712 | P52: 206.6239 | Q52: 1.2473 | T52: 0
B53: GC | C53: STE | D53: 11 | E53: RM | F53: STE 2 | G53: VID/4,00 | H53: 0 | I53: 0 | J53: 0 | L53: 0 | M53: 0 | N53: 0 | O53: 0 | P53: 0 | Q53: 0 | T53: 0
D54: Total 11 | H54: 0 | I54: 0 | J54: 0 | L54: 0 | M54: 0 | N54: 0 | O54: 0 | P54: 0 | Q54: 0 | T54: 0
D55: 12 | E55: RM | F55: STE 1 | G55: VID/ | H55: 0 | I55: 0 | J55: 0 | K55: 0.703 | L55: 1.4601 | M55: 0 | N55: 1.4601 | O55: 1.4601 | P55: 0 | Q55: 1.4601 | T55: 0
D56: Total 12 | H56: 0 | I56: 0 | J56: 0 | K56: 0.703 | L56: 1.4601 | M56: 0 | N56: 1.4601 | O56: 1.4601 | P56: 0 | Q56: 1.4601 | T56: 0
D57: 13 | E57: RM | F57: STE 1 | G57: 3.6 | H57: 6 | J57: 21.6 | K57: 0.701 | M57: 15.1416 | N57: -15.1416 | O57: 0 | P57: 15.1416 | Q57: -15.1416 | T57: 0
G58: 3.5 | H58: 2 | J58: 7 | K58: 0.701 | M58: 4.907 | N58: -4.907 | O58: 0 | P58: 4.907 | Q58: -4.907 | T58: 0
G59: 3.2 | H59: 1 | J59: 3.2 | K59: 0.701 | M59: 2.2432 | N59: -2.2432 | O59: 0 | P59: 2.2432 | Q59: -2.2432 | T59: 0
G60: 3.55 | H60: 6 | J60: 21.3 | K60: 0.701 | M60: 14.9313 | N60: -14.9313 | O60: 0 | P60: 14.9313 | Q60: -14.9313 | T60: 0
G61: 3.65 | H61: 1 | J61: 3.65 | K61: 0.701 | M61: 2.5587 | N61: -2.5587 | O61: 0 | P61: 2.5587 | Q61: -2.5587 | T61: 0
G62: 2 | H62: 1 | J62: 2 | K62: 0.701 | L62: 42.782 | M62: 1.402 | N62: 41.38 | O62: 42.782 | P62: 1.402 | Q62: 41.38 | T62: 0
D63: Total 13 | H63: 17 | J63: 58.75 | K63: 0.701 | L63: 42.782 | M63: 41.1838 | N63: 1.5982 | O63: 42.782 | P63: 41.1838 | Q63: 1.5982 | T63: 0
D64: 14 | E64: RM | F64: STE 1 | G64: 3.5 | H64: 11 | J64: 38.5 | K64: 0.707 | M64: 27.2195 | N64: -27.2195 | O64: 0 | P64: 27.2195 | Q64: -27.2195 | T64: 0
G65: 3.55 | H65: 2 | J65: 7.1 | K65: 0.707 | M65: 5.0197 | N65: -5.0197 | O65: 0 | P65: 5.0197 | Q65: -5.0197 | T65: 0
G66: 3.45 | H66: 4 | J66: 13.8 | K66: 0.707 | L66: 43.627 | M66: 9.7566 | N66: 33.8704 | O66: 43.627 | P66: 9.7566 | Q66: 33.8704 | T66: 0
G67: VID/3,55 | H67: 1 | I67: 1.44 | J67: 1.44 | K67: 0.707 | M67: 1.0181 | N67: -1.0181 | O67: 0 | P67: 1.0181 | Q67: -1.0181 | T67: 0
D68: Total 14 | H68: 18 | I68: 1.44 | J68: 60.84 | K68: 0.707 | L68: 43.627 | M68: 43.0139 | N68: 0.6131 | O68: 43.627 | P68: 43.0139 | Q68: 0.6131 | T68: 0
D69: 15 | E69: RM | F69: STE 1 | G69: 3.6 | H69: 4 | J69: 14.4 | K69: 0.708 | M69: 10.1952 | N69: -10.1952 | O69: 0 | P69: 10.1952 | Q69: -10.1952 | T69: 0
G70: 3.5 | H70: 4 | J70: 14 | K70: 0.708 | M70: 9.912 | N70: -9.912 | O70: 0 | P70: 9.912 | Q70: -9.912 | T70: 0
G71: 3.55 | H71: 6 | J71: 21.3 | K71: 0.708 | M71: 15.0804 | N71: -15.0804 | O71: 0 | P71: 15.0804 | Q71: -15.0804 | T71: 0
G72: 3.65 | H72: 3 | J72: 10.95 | K72: 0.708 | L72: 45.5251 | M72: 7.7526 | N72: 37.7725 | O72: 45.5251 | P72: 7.7526 | Q72: 37.7725 | T72: 0
G73: VID/3,55 | H73: 1 | I73: 2.64 | J73: 2.64 | K73: 0.708 | M73: 1.8691 | N73: -1.8691 | O73: 0 | P73: 1.8691 | Q73: -1.8691 | T73: 0
E74: H | F74: STE 2 | G74: VID/4,10 | H74: 1 | I74: 2.08 | J74: 2.08 | K74: 0.713 | M74: 1.483 | N74: -1.483 | O74: 0 | P74: 1.483 | Q74: -1.483 | T74: 0
G75: 4.03 | H75: 18 | J75: 72.54 | K75: 0.713 | L75: 53.208 | M75: 51.721 | N75: 1.487 | O75: 53.208 | P75: 51.721 | Q75: 1.487 | T75: 0
D76: Total 15 | H76: 37 | I76: 4.72 | J76: 137.91 | K76: 0.7094285714 | L76: 98.7331 | M76: 98.0133 | N76: 0.7198 | O76: 98.7331 | P76: 98.0133 | Q76: 0.7198 | T76: 0
C77: Juillac | D77: 10 | E77: H | F77: J 1 | G77: VID/5,20 | H77: 0 | I77: 0 | J77: 0 | K77: 0.672 | L77: 0.0007 | M77: 0.0007 | N77: 0 | O77: 0.0007 | P77: 0.0007 | Q77: 0 | T77: 0
D78: Total 10 | H78: 0 | I78: 0 | J78: 0 | K78: 0.672 | L78: 0.0007 | M78: 0.0007 | N78: 0 | O78: 0.0007 | P78: 0.0007 | Q78: 0 | T78: 0
D79: 11 | E79: H | F79: J 1 | G79: 3.5 | H79: 1 | J79: 3.5 | K79: 0.667 | M79: 2.3345 | N79: -2.3345 | O79: 0 | P79: 2.3345 | Q79: -2.3345 | T79: 0
G80: 4 | H80: 2 | J80: 8 | K80: 0.667 | M80: 5.336 | N80: -5.336 | O80: 0 | P80: 5.336 | Q80: -5.336 | T80: 0
G81: 4.4 | H81: 4 | J81: 17.6 | K81: 0.667 | L81: 23.3167 | M81: 11.7392 | N81: 11.5775 | O81: 19.0853 | P81: 7.5078 | Q81: 11.5775 | R81: 4.2314 | S81: 4.2314 | T81: 0
G82: 4.3 | H82: 1 | J82: 4.3 | K82: 0.667 | M82: 2.8681 | N82: -2.8681 | O82: 0 | P82: 2.8681 | Q82: -2.8681 | T82: 0
G83: VID/2,50 | H83: 1 | I83: 1.05 | J83: 1.05 | K83: 0.667 | M83: 0.7004 | N83: -0.7004 | O83: 0 | P83: 0.7004 | Q83: -0.7004 | T83: 0
D84: Total 11 | H84: 9 | I84: 1.05 | J84: 34.45 | K84: 0.667 | L84: 23.3167 | M84: 22.9782 | N84: 0.3385 | O84: 19.0853 | P84: 18.7468 | Q84: 0.3385 | R84: 4.2314 | S84: 4.2314 | T84: 0
D85: 12 | E85: H | F85: J 1 | G85: VID/ | H85: 0 | I85: 0 | J85: 0 | K85: 0.699 | L85: 0.4966 | M85: 0.4966 | N85: 0 | O85: 0.4966 | P85: 0.4966 | Q85: 0 | T85: 0
D86: Total 12 | H86: 0 | I86: 0 | J86: 0 | K86: 0.699 | L86: 0.4966 | M86: 0.4966 | N86: 0 | O86: 0.4966 | P86: 0.4966 | Q86: 0 | T86: 0
D87: 13 | E87: H | F87: J 1 | G87: 4 | H87: 12 | J87: 48 | K87: 0.693 | M87: 33.264 | N87: -33.264 | O87: 0 | P87: 33.264 | Q87: -33.264 | T87: 0
G88: 4.1 | H88: 8 | J88: 32.8 | K88: 0.693 | L88: 58.2204 | M88: 22.7304 | N88: 35.49 | O88: 58.2204 | P88: 22.7304 | Q88: 35.49 | T88: 0
G89: VID/4,00 | H89: 1 | I89: 1.8 | J89: 1.8 | K89: 0.693 | M89: 1.2474 | N89: -1.2474 | O89: 0 | P89: 1.2474 | Q89: -1.2474 | T89: 0
D90: Total 13 | H90: 21 | I90: 1.8 | J90: 82.6 | K90: 0.693 | L90: 58.2204 | M90: 57.2418 | N90: 0.9786 | O90: 58.2204 | P90: 57.2418 | Q90: 0.9786 | T90: 0
D91: 14 | E91: H | F91: J 1 | G91: 4 | H91: 20 | J91: 80 | K91: 0.705 | L91: 57.8932 | M91: 56.4 | N91: 1.4932 | O91: 57.8932 | P91: 56.4 | Q91: 1.4932 | T91: 0
G92: VID/4,10 | H92: 1 | I92: 0.82 | J92: 0.82 | K92: 0.705 | M92: 0.5781 | N92: -0.5781 | O92: 0 | P92: 0.5781 | Q92: -0.5781 | T92: 0
D93: Total 14 | H93: 21 | I93: 0.82 | J93: 80.82 | K93: 0.705 | L93: 57.8932 | M93: 56.9781 | N93: 0.9151 | O93: 57.8932 | P93: 56.9781 | Q93: 0.9151 | T93: 0
B94: Total général | H94: 317 | I94: 33.8 | J94: 1209.97 | K94: 0.6875483871 | L94: 882.787 | M94: 867.2524 | N94: 15.5346 | O94: 870.5327 | P94: 854.9981 | Q94: 15.5346 | R94: 12.2543 | S94: 12.2543 | T94: 0

Sheet 11_2016
B1: Base de données - Stock Eau-de-Vie
B3: Date : | D3: =Choix -> EDV_11_2016
B4: Total AP
B5: Avec RG* | D5: Sans RG | G5: RG seul
B6: =Stock!B6 -> 867.2524 | D6: =Stock!F6 -> 854.9981 | G6: =Stock!I6 -> 12.2543
B7: Evaporation
B8: Manquants | C8: % | D8: Manquants | F8: % | G8: Manquants | I8: %
B9: =Stock!B9 -> 15.5346 | C9: =Stock!E9 -> 0.01759722334 | D9: =Stock!F9 -> 15.5346 | F9: =Stock!H9 -> 0.01784493564 | G9: =Stock!I9 -> 0 | I9: =Stock!K9 -> 0
B11: Doit rester | C11: RG N-1 | D11: Cru | E11: Lieu | F11: Récolte | G11: Lot | H11: N° Chai | I11: Capacité des fûts | J11: Nombre | K11: Vidange | L11: Vol total (HL) | M11: Degré | N11: Sous-total AP | O11: RG
D12: PC | E12: STE | F12: 9 | G12: RM | H12: STE 1 | I12: VID/3 | J12: 7 | K12: 2.53 | L12: =IF(EDV_11_2016[Vidange]="",EDV_11_2016[Capacité des fûts]*EDV_11_2016[Nombre],EDV_11_2016[[#This Row],[Vidange]]) -> 2.53 | M12: 0.8 | N12: =ROUND(EDV_11_2016[Vol total (HL)]*EDV_11_2016[Degré],4) -> 2.024
D13: PC | E13: STE | F13: 9 | G13: RM | H13: STE 1 | I13: 3.6 | J13: 8 | L13: =IF(EDV_11_2016[Vidange]="",EDV_11_2016[Capacité des fûts]*EDV_11_2016[Nombre],EDV_11_2016[[#This Row],[Vidange]]) -> 28.8 | M13: 0.8 | N13: =ROUND(EDV_11_2016[Vol total (HL)]*EDV_11_2016[Degré],4) -> 23.04
D14: PC | E14: STE | F14: 9 | G14: RM | H14: STE 1 | I14: 3.5 | J14: 10 | L14: =IF(EDV_11_2016[Vidange]="",EDV_11_2016[Capacité des fûts]*EDV_11_2016[Nombre],EDV_11_2016[[#This Row],[Vidange]]) -> 35 | M14: 0.8 | N14: =ROUND(EDV_11_2016[Vol total (HL)]*EDV_11_2016[Degré],4) -> 28
B15: 0 | D15: PC | E15: STE | F15: 10 | G15: H | H15: STE 2 | I15: VID/4,00 | J15: 0 | K15: 0 | L15: =IF(EDV_11_2016[Vidange]="",EDV_11_2016[Capacité des fûts]*EDV_11_2016[Nombre],EDV_11_2016[[#This Row],[Vidange]]) -> 0 | N15: =ROUND(EDV_11_2016[Vol total (HL)]*EDV_11_2016[Degré],4) -> 0
D16: PC | E16: STE | F16: 11 | G16: H | H16: STE 2 | I16: VID/4,00 | J16: 1 | K16: 1.2 | L16: =IF(EDV_11_2016[Vidange]="",EDV_11_2016[Capacité des fûts]*EDV_11_2016[Nombre],EDV_11_2016[[#This Row],[Vidange]]) -> 1.2 | M16: 0.688 | N16: =ROUND(EDV_11_2016[Vol total (HL)]*EDV_11_2016[Degré],4) -> 0.8256
B17: 27.864 | C17: 8.0229 | D17: PC | E17: STE | F17: 11 | G17: H | H17: STE 2 | I17: 4.1 | J17: 1 | L17: =IF(EDV_11_2016[Vidange]="",EDV_11_2016[Capacité des fûts]*EDV_11_2016[Nombre],EDV_11_2016[[#This Row],[Vidange]]) -> 4.1 | M17: 0.688 | N17: =ROUND(EDV_11_2016[Vol total (HL)]*EDV_11_2016[Degré],4) -> 2.8208 | O17: 8.0229
D18: PC | E18: STE | F18: 11 | G18: H | H18: STE 2 | I18: 5 | J18: 5 | L18: =IF(EDV_11_2016[Vidange]="",EDV_11_2016[Capacité des fûts]*EDV_11_2016[Nombre],EDV_11_2016[[#This Row],[Vidange]]) -> 25 | M18: 0.688 | N18: =ROUND(EDV_11_2016[Vol total (HL)]*EDV_11_2016[Degré],4) -> 17.2
D19: PC | E19: STE | F19: 11 | G19: H | H19: STE 2 | I19: 5.1 | J19: 2 | L19: =IF(EDV_11_2016[Vidange]="",EDV_11_2016[Capacité des fûts]*EDV_11_2016[Nombre],EDV_11_2016[[#This Row],[Vidange]]) -> 10.2 | M19: 0.688 | N19: =ROUND(EDV_11_2016[Vol total (HL)]*EDV_11_2016[Degré],4) -> 7.0176
B20: 0 | D20: PC | E20: STE | F20: 12 | G20: H | H20: STE 2 | I20: VID/ | J20: 0 | L20: 0 | M20: 0.675 | N20: =ROUND(EDV_11_2016[Vol total (HL)]*EDV_11_2016[Degré],4) -> 0
B21: 2.2345 | D21: PC | E21: STE | F21: 12 | G21: RM | H21: STE 1 | I21: VID/ | J21: 0 | K21: 0 | L21: 0 | M21: 0.7 | N21: 0
B22: 16.8613 | D22: PC | E22: STE | F22: 13 | G22: H | H22: STE 2 | I22: VID/ | J22: 0 | K22: 0 | L22: =IF(EDV_11_2016[Vidange]="",EDV_11_2016[Capacité des fûts]*EDV_11_2016[Nombre],EDV_11_2016[[#This Row],[Vidange]]) -> 0 | M22: 0.688 | N22: 16.8613
D23: PC | E23: STE | F23: 13 | G23: RM | H23: STE 1 | I23: VID/3,55 | J23: 1 | K23: 0.25 | L23: =IF(EDV_11_2016[Vidange]="",EDV_11_2016[Capacité des fûts]*EDV_11_2016[Nombre],EDV_11_2016[[#This Row],[Vidange]]) -> 0.25 | M23: 0.703 | N23: =ROUND(EDV_11_2016[Vol total (HL)]*EDV_11_2016[Degré],4) -> 0.1758
B24: 75.0339 | D24: PC | E24: STE | F24: 13 | G24: RM | H24: STE 1 | I24: 3.5 | J24: 4 | L24: =IF(EDV_11_2016[Vidange]="",EDV_11_2016[Capacité des fûts]*EDV_11_2016[Nombre],EDV_11_2016[[#This Row],[Vidange]]) -> 14 | M24: 0.703 | N24: =ROUND(EDV_11_2016[Vol total (HL)]*EDV_11_2016[Degré],4) -> 9.842
D25: PC | E25: STE | F25: 13 | G25: RM | H25: STE 1 | I25: 3.55 | J25: 13 | L25: =IF(EDV_11_2016[Vidange]="",EDV_11_2016[Capacité des fûts]*EDV_11_2016[Nombre],EDV_11_2016[[#This Row],[Vidange]]) -> 46.15 | M25: 0.703 | N25: =ROUND(EDV_11_2016[Vol total (HL)]*EDV_11_2016[Degré],4) -> 32.4435
D26: PC | E26: STE | F26: 13 | G26: RM | H26: STE 1 | I26: 3.6 | J26: 11 | L26: =IF(EDV_11_2016[Vidange]="",EDV_11_2016[Capacité des fûts]*EDV_11_2016[Nombre],EDV_11_2016[[#This Row],[Vidange]]) -> 39.6 | M26: 0.703 | N26: =ROUND(EDV_11_2016[Vol total (HL)]*EDV_11_2016[Degré],4) -> 27.8388
D27: PC | E27: STE | F27: 13 | G27: RM | H27: STE 1 | I27: 3.75 | J27: 1 | L27: =IF(EDV_11_2016[Vidange]="",EDV_11_2016[Capacité des fûts]*EDV_11_2016[Nombre],EDV_11_2016[[#This Row],[Vidange]]) -> 3.75 | M27: 0.703 | N27: =ROUND(EDV_11_2016[Vol total (HL)]*EDV_11_2016[Degré],4) -> 2.6363
D28: PC | E28: STE | F28: 14 | G28: H | H28: STE 2 | I28: VID/4,00 | J28: 1 | K28: 2.53 | L28: =IF(EDV_11_2016[Vidange]="",EDV_11_2016[Capacité des fûts]*EDV_11_2016[Nombre],EDV_11_2016[[#This Row],[Vidange]]) -> 2.53 | M28: 0.707 | N28: =ROUND(EDV_11_2016[Vol total (HL)]*EDV_11_2016[Degré],4) -> 1.7887
D29: PC | E29: STE | F29: 14 | G29: H | H29: STE 2 | I29: PE/4,00 | J29: 1 | K29: 4 | L29: =IF(EDV_11_2016[Vidange]="",EDV_11_2016[Capacité des fûts]*EDV_11_2016[Nombre],EDV_11_2016[[#This Row],[Vidange]]) -> 4 | M29: 0.378 | N29: =ROUND(EDV_11_2016[Vol total (HL)]*EDV_11_2016[Degré],4) -> 1.512
B30: 148.165 | D30: PC | E30: STE | F30: 14 | G30: H | H30: STE 2 | I30: 4 | J30: 29 | L30: =IF(EDV_11_2016[Vidange]="",EDV_11_2016[Capacité des fûts]*EDV_11_2016[Nombre],EDV_11_2016[[#This Row],[Vidange]]) -> 116 | M30: 0.707 | N30: =ROUND(EDV_11_2016[Vol total (HL)]*EDV_11_2016[Degré],4) -> 82.012
D31: PC | E31: STE | F31: 14 | G31: H | H31: STE 2 | I31: 4.1 | J31: 9 | L31: =IF(EDV_11_2016[Vidange]="",EDV_11_2016[Capacité des fûts]*EDV_11_2016[Nombre],EDV_11_2016[[#This Row],[Vidange]]) -> 36.9 | M31: 0.707 | N31: =ROUND(EDV_11_2016[Vol total (HL)]*EDV_11_2016[Degré],4) -> 26.0883
D32: PC | E32: STE | F32: 14 | G32: H | H32: STE 2 | I32: 5.2 | J32: 10 | L32: =IF(EDV_11_2016[Vidange]="",EDV_11_2016[Capacité des fûts]*EDV_11_2016[Nombre],EDV_11_2016[[#This Row],[Vidange]]) -> 52 | M32: 0.707 | N32: =ROUND(EDV_11_2016[Vol total (HL)]*EDV_11_2016[Degré],4) -> 36.764
D33: PC | E33: STE | F33: 14 | G33: RM | H33: STE 1 | I33: VID/3,45 | J33: 1 | K33: 1.44 | L33: =IF(EDV_11_2016[Vidange]="",EDV_11_2016[Capacité des fûts]*EDV_11_2016[Nombre],EDV_11_2016[[#This Row],[Vidange]]) -> 1.44 | M33: 0.707 | N33: =ROUND(EDV_11_2016[Vol total (HL)]*EDV_11_2016[Degré],4) -> 1.0181
B34: 75.757 | D34: PC | E34: STE | F34: 14 | G34: RM | H34: STE 1 | I34: 3.45 | J34: 12 | L34: =IF(EDV_11_2016[Vidange]="",EDV_11_2016[Capacité des fûts]*EDV_11_2016[Nombre],EDV_11_2016[[#This Row],[Vidange]]) -> 41.4 | M34: 0.707 | N34: =ROUND(EDV_11_2016[Vol total (HL)]*EDV_11_2016[Degré],4) -> 29.2698
D35: PC | E35: STE | F35: 14 | G35: RM | H35: STE 1 | I35: 3.5 | J35: 15 | L35: =IF(EDV_11_2016[Vidange]="",EDV_11_2016[Capacité des fûts]*EDV_11_2016[Nombre],EDV_11_2016[[#This Row],[Vidange]]) -> 52.5 | M35: 0.707 | N35: =ROUND(EDV_11_2016[Vol total (HL)]*EDV_11_2016[Degré],4) -> 37.1175
D36: PC | E36: STE | F36: 14 | G36: RM | H36: STE 1 | I36: 3.55 | J36: 2 | L36: =IF(EDV_11_2016[Vidange]="",EDV_11_2016[Capacité des fûts]*EDV_11_2016[Nombre],EDV_11_2016[[#This Row],[Vidange]]) -> 7.1 | M36: 0.707 | N36: =ROUND(EDV_11_2016[Vol total (HL)]*EDV_11_2016[Degré],4) -> 5.0197
D37: PC | E37: STE | F37: 15 | G37: H | H37: STE 2 | I37: VID/4,03 | K37: 2.26 | L37: =IF(EDV_11_2016[Vidange]="",EDV_11_2016[Capacité des fûts]*EDV_11_2016[Nombre],EDV_11_2016[[#This Row],[Vidange]]) -> 2.26 | M37: 0.712 | N37: =ROUND(EDV_11_2016[Vol total (HL)]*EDV_11_2016[Degré],4) -> 1.6091
D38: PC | E38: STE | F38: 15 | G38: H | H38: STE 2 | I38: T80 | K38: 3.34 | L38: =IF(EDV_11_2016[Vidange]="",EDV_11_2016[Capacité des fûts]*EDV_11_2016[Nombre],EDV_11_2016[[#This Row],[Vidange]]) -> 3.34 | M38: 0.712 | N38: =ROUND(EDV_11_2016[Vol total (HL)]*EDV_11_2016[Degré],4) -> 2.3781
D39: PC | E39: STE | F39: 15 | G39: H | H39: STE 2 | I39: T 61 | K39: 4.04 | L39: =IF(EDV_11_2016[Vidange]="",EDV_11_2016[Capacité des fûts]*EDV_11_2016[Nombre],EDV_11_2016[[#This Row],[Vidange]]) -> 4.04 | M39: 0.712 | N39: =ROUND(EDV_11_2016[Vol total (HL)]*EDV_11_2016[Degré],4) -> 2.8765
B40: 130.4412 | D40: PC | E40: STE | F40: 15 | G40: H | H40: STE 2 | I40: 4.1 | J40: 6 | L40: =IF(EDV_11_2016[Vidange]="",EDV_11_2016[Capacité des fûts]*EDV_11_2016[Nombre],EDV_11_2016[[#This Row],[Vidange]]) -> 24.6 | M40: 0.712 | N40: =ROUND(EDV_11_2016[Vol total (HL)]*EDV_11_2016[Degré],4) -> 17.5152
D41: PC | E41: STE | F41: 15 | G41: H | H41: STE 2 | I41: 4.03 | J41: 37 | L41: =IF(EDV_11_2016[Vidange]="",EDV_11_2016[Capacité des fûts]*EDV_11_2016[Nombre],EDV_11_2016[[#This Row],[Vidange]]) -> 149.11 | M41: 0.712 | N41: =ROUND(EDV_11_2016[Vol total (HL)]*EDV_11_2016[Degré],4) -> 106.1663
B42: 77.43 | D42: PC | E42: STE | F42: 15 | G42: RM | H42: STE 1 | I42: 3.6 | J42: 1 | L42: =IF(EDV_11_2016[Vidange]="",EDV_11_2016[Capacité des fûts]*EDV_11_2016[Nombre],EDV_11_2016[[#This Row],[Vidange]]) -> 3.6 | M42: 0.703 | N42: =ROUND(EDV_11_2016[Vol total (HL)]*EDV_11_2016[Degré],4) -> 2.5308
D43: PC | E43: STE | F43: 15 | G43: RM | H43: STE 1 | I43: 3.55 | J43: 20 | L43: =IF(EDV_11_2016[Vidange]="",EDV_11_2016[Capacité des fûts]*EDV_11_2016[Nombre],EDV_11_2016[[#This Row],[Vidange]]) -> 71 | M43: 0.703 | N43: =ROUND(EDV_11_2016[Vol total (HL)]*EDV_11_2016[Degré],4) -> 49.913
D44: PC | E44: STE | F44: 15 | G44: RM | H44: STE 1 | I44: 3.5 | J44: 5 | L44: =IF(EDV_11_2016[Vidange]="",EDV_11_2016[Capacité des fûts]*EDV_11_2016[Nombre],EDV_11_2016[[#This Row],[Vidange]]) -> 17.5 | M44: 0.703 | N44: =ROUND(EDV_11_2016[Vol total (HL)]*EDV_11_2016[Degré],4) -> 12.3025
D45: PC | E45: STE | F45: 15 | G45: RM | H45: STE 2 | I45: 4.03 | J45: 4 | L45: =IF(EDV_11_2016[Vidange]="",EDV_11_2016[Capacité des fûts]*EDV_11_2016[Nombre],EDV_11_2016[[#This Row],[Vidange]]) -> 16.12 | M45: 0.703 | N45: =ROUND(EDV_11_2016[Vol total (HL)]*EDV_11_2016[Degré],4) -> 11.3324
B46: 0.9492 | D46: PC | E46: STE | F46: 93 | G46: C 010 | H46: STE 2 | I46: VID/2,50 | J46: 1 | K46: 2.26 | L46: =IF(EDV_11_2016[Vidange]="",EDV_11_2016[Capacité des fûts]*EDV_11_2016[Nombre],EDV_11_2016[[#This Row],[Vidange]]) -> 2.26 | M46: 0.42 | N46: =ROUND(EDV_11_2016[Vol total (HL)]*EDV_11_2016[Degré],4) -> 0.9492
B47: 1.5211 | D47: PC | E47: STE | F47: 94 | G47: C 010 | H47: STE 2 | I47: VID/3,40 | J47: 1 | K47: 2.65 | L47: =IF(EDV_11_2016[Vidange]="",EDV_11_2016[Capacité des fûts]*EDV_11_2016[Nombre],EDV_11_2016[[#This Row],[Vidange]]) -> 2.65 | M47: 0.574 | N47: =ROUND(EDV_11_2016[Vol total (HL)]*EDV_11_2016[Degré],4) -> 1.5211
B48: 0.0007 | D48: GC | E48: Juillac | F48: 10 | G48: H | H48: J 1 | I48: VID/5,20 | J48: 0 | K48: 0 | L48: =IF(EDV_11_2016[Vidange]="",EDV_11_2016[Capacité des fûts]*EDV_11_2016[Nombre],EDV_11_2016[[#This Row],[Vidange]]) -> 0 | M48: 0.672 | N48: 0.0007
D49: GC | E49: Juillac | F49: 11 | G49: H | H49: J 1 | I49: VID/2,50 | J49: 1 | K49: 1.05 | L49: =IF(EDV_11_2016[Vidange]="",EDV_11_2016[Capacité des fûts]*EDV_11_2016[Nombre],EDV_11_2016[[#This Row],[Vidange]]) -> 1.05 | M49: 0.667 | N49: =ROUND(EDV_11_2016[Vol total (HL)]*EDV_11_2016[Degré],4) -> 0.7004
B50: 23.3167 | C50: 4.2314 | D50: GC | E50: Juillac | F50: 11 | G50: H | H50: J 1 | I50: 4.4 | J50: 4 | L50: =IF(EDV_11_2016[Vidange]="",EDV_11_2016[Capacité des fûts]*EDV_11_2016[Nombre],EDV_11_2016[[#This Row],[Vidange]]) -> 17.6 | M50: 0.667 | N50: =ROUND(EDV_11_2016[Vol total (HL)]*EDV_11_2016[Degré],4) -> 11.7392 | O50: 4.2314
A51: 1 | D51: GC | E51: Juillac | F51: 11 | G51: H | H51: J 1 | I51: 4.3 | J51: 1 | L51: =IF(EDV_11_2016[Vidange]="",EDV_11_2016[Capacité des fûts]*EDV_11_2016[Nombre],EDV_11_2016[[#This Row],[Vidange]]) -> 4.3 | M51: 0.667 | N51: =ROUND(EDV_11_2016[Vol total (HL)]*EDV_11_2016[Degré],4) -> 2.8681
D52: GC | E52: Juillac | F52: 11 | G52: H | H52: J 1 | I52: 4 | J52: 2 | L52: =IF(EDV_11_2016[Vidange]="",EDV_11_2016[Capacité des fûts]*EDV_11_2016[Nombre],EDV_11_2016[[#This Row],[Vidange]]) -> 8 | M52: 0.667 | N52: =ROUND(EDV_11_2016[Vol total (HL)]*EDV_11_2016[Degré],4) -> 5.336
D53: GC | E53: Juillac | F53: 11 | G53: H | H53: J 1 | I53: 3.5 | J53: 1 | L53: =IF(EDV_11_2016[Vidange]="",EDV_11_2016[Capacité des fûts]*EDV_11_2016[Nombre],EDV_11_2016[[#This Row],[Vidange]]) -> 3.5 | M53: 0.667 | N53: =ROUND(EDV_11_2016[Vol total (HL)]*EDV_11_2016[Degré],4) -> 2.3345
B54: 0 | D54: GC | E54: STE | F54: 11 | G54: RM | H54: STE 2 | I54: VID/4,00 | J54: 0 | K54: 0 | L54: =IF(EDV_11_2016[Vidange]="",EDV_11_2016[Capacité des fûts]*EDV_11_2016[Nombre],EDV_11_2016[[#This Row],[Vidange]]) -> 0 | N54: =ROUND(EDV_11_2016[Vol total (HL)]*EDV_11_2016[Degré],4) -> 0
B55: 0.4966 | D55: GC | E55: Juillac | F55: 12 | G55: H | H55: J 1 | I55: VID/ | J55: 0 | K55: 0 | L55: =IF(EDV_11_2016[Vidange]="",EDV_11_2016[Capacité des fûts]*EDV_11_2016[Nombre],EDV_11_2016[[#This Row],[Vidange]]) -> 0 | M55: 0.699 | N55: 0.4966
B56: 1.4601 | D56: GC | E56: STE | F56: 12 | G56: RM | H56: STE 1 | I56: VID/ | J56: 0 | K56: 0 | L56: =IF(EDV_11_2016[Vidange]="",EDV_11_2016[Capacité des fûts]*EDV_11_2016[Nombre],EDV_11_2016[[#This Row],[Vidange]]) -> 0 | M56: 0.703 | N56: 0
D57: GC | E57: Juillac | F57: 13 | G57: H | H57: J 1 | I57: VID/4,00 | J57: 1 | K57: 1.8 | L57: =IF(EDV_11_2016[Vidange]="",EDV_11_2016[Capacité des fûts]*EDV_11_2016[Nombre],EDV_11_2016[[#This Row],[Vidange]]) -> 1.8 | M57: 0.693 | N57: =ROUND(EDV_11_2016[Vol total (HL)]*EDV_11_2016[Degré],4) -> 1.2474
B58: 58.2204 | D58: GC | E58: Juillac | F58: 13 | G58: H | H58: J 1 | I58: 4.1 | J58: 8 | L58: =IF(EDV_11_2016[Vidange]="",EDV_11_2016[Capacité des fûts]*EDV_11_2016[Nombre],EDV_11_2016[[#This Row],[Vidange]]) -> 32.8 | M58: 0.693 | N58: =ROUND(EDV_11_2016[Vol total (HL)]*EDV_11_2016[Degré],4) -> 22.7304
D59: GC | E59: Juillac | F59: 13 | G59: H | H59: J 1 | I59: 4 | J59: 12 | L59: =IF(EDV_11_2016[Vidange]="",EDV_11_2016[Capacité des fûts]*EDV_11_2016[Nombre],EDV_11_2016[[#This Row],[Vidange]]) -> 48 | M59: 0.693 | N59: =ROUND(EDV_11_2016[Vol total (HL)]*EDV_11_2016[Degré],4) -> 33.264
B60: 42.782 | D60: GC | E60: STE | F60: 13 | G60: RM | H60: STE 1 | I60: 2 | J60: 1 | L60: =IF(EDV_11_2016[Vidange]="",EDV_11_2016[Capacité des fûts]*EDV_11_2016[Nombre],EDV_11_2016[[#This Row],[Vidange]]) -> 2 | M60: 0.701 | N60: =ROUND(EDV_11_2016[Vol total (HL)]*EDV_11_2016[Degré],4) -> 1.402
D61: GC | E61: STE | F61: 13 | G61: RM | H61: STE 1 | I61: 3.2 | J61: 1 | L61: =IF(EDV_11_2016[Vidange]="",EDV_11_2016[Capacité des fûts]*EDV_11_2016[Nombre],EDV_11_2016[[#This Row],[Vidange]]) -> 3.2 | M61: 0.701 | N61: =ROUND(EDV_11_2016[Vol total (HL)]*EDV_11_2016[Degré],4) -> 2.2432
D62: GC | E62: STE | F62: 13 | G62: RM | H62: STE 1 | I62: 3.5 | J62: 2 | L62: =IF(EDV_11_2016[Vidange]="",EDV_11_2016[Capacité des fûts]*EDV_11_2016[Nombre],EDV_11_2016[[#This Row],[Vidange]]) -> 7 | M62: 0.701 | N62: =ROUND(EDV_11_2016[Vol total (HL)]*EDV_11_2016[Degré],4) -> 4.907
D63: GC | E63: STE | F63: 13 | G63: RM | H63: STE 1 | I63: 3.55 | J63: 6 | L63: =IF(EDV_11_2016[Vidange]="",EDV_11_2016[Capacité des fûts]*EDV_11_2016[Nombre],EDV_11_2016[[#This Row],[Vidange]]) -> 21.3 | M63: 0.701 | N63: =ROUND(EDV_11_2016[Vol total (HL)]*EDV_11_2016[Degré],4) -> 14.9313
D64: GC | E64: STE | F64: 13 | G64: RM | H64: STE 1 | I64: 3.6 | J64: 6 | L64: =IF(EDV_11_2016[Vidange]="",EDV_11_2016[Capacité des fûts]*EDV_11_2016[Nombre],EDV_11_2016[[#This Row],[Vidange]]) -> 21.6 | M64: 0.701 | N64: =ROUND(EDV_11_2016[Vol total (HL)]*EDV_11_2016[Degré],4) -> 15.1416
D65: GC | E65: STE | F65: 13 | G65: RM | H65: STE 1 | I65: 3.65 | J65: 1 | L65: =IF(EDV_11_2016[Vidange]="",EDV_11_2016[Capacité des fûts]*EDV_11_2016[Nombre],EDV_11_2016[[#This Row],[Vidange]]) -> 3.65 | M65: 0.701 | N65: =ROUND(EDV_11_2016[Vol total (HL)]*EDV_11_2016[Degré],4) -> 2.5587
D66: GC | E66: Juillac | F66: 14 | G66: H | H66: J 1 | I66: VID/4,10 | J66: 1 | K66: 0.82 | L66: =IF(EDV_11_2016[Vidange]="",EDV_11_2016[Capacité des fûts]*EDV_11_2016[Nombre],EDV_11_2016[[#This Row],[Vidange]]) -> 0.82 | M66: 0.705 | N66: =ROUND(EDV_11_2016[Vol total (HL)]*EDV_11_2016[Degré],4) -> 0.5781
B67: 57.8932 | D67: GC | E67: Juillac | F67: 14 | G67: H | H67: J 1 | I67: 4 | J67: 20 | L67: =IF(EDV_11_2016[Vidange]="",EDV_11_2016[Capacité des fûts]*EDV_11_2016[Nombre],EDV_11_2016[[#This Row],[Vidange]]) -> 80 | M67: 0.705 | N67: =ROUND(EDV_11_2016[Vol total (HL)]*EDV_11_2016[Degré],4) -> 56.4
D68: GC | E68: STE | F68: 14 | G68: RM | H68: STE 1 | I68: VID/3,55 | J68: 1 | K68: 1.44 | L68: =IF(EDV_11_2016[Vidange]="",EDV_11_2016[Capacité des fûts]*EDV_11_2016[Nombre],EDV_11_2016[[#This Row],[Vidange]]) -> 1.44 | M68: 0.707 | N68: =ROUND(EDV_11_2016[Vol total (HL)]*EDV_11_2016[Degré],4) -> 1.0181
B69: 43.627 | D69: GC | E69: STE | F69: 14 | G69: RM | H69: STE 1 | I69: 3.45 | J69: 4 | L69: =IF(EDV_11_2016[Vidange]="",EDV_11_2016[Capacité des fûts]*EDV_11_2016[Nombre],EDV_11_2016[[#This Row],[Vidange]]) -> 13.8 | M69: 0.707 | N69: =ROUND(EDV_11_2016[Vol total (HL)]*EDV_11_2016[Degré],4) -> 9.7566
D70: GC | E70: STE | F70: 14 | G70: RM | H70: STE 1 | I70: 3.5 | J70: 11 | L70: =IF(EDV_11_2016[Vidange]="",EDV_11_2016[Capacité des fûts]*EDV_11_2016[Nombre],EDV_11_2016[[#This Row],[Vidange]]) -> 38.5 | M70: 0.707 | N70: =ROUND(EDV_11_2016[Vol total (HL)]*EDV_11_2016[Degré],4) -> 27.2195
D71: GC | E71: STE | F71: 14 | G71: RM | H71: STE 1 | I71: 3.55 | J71: 2 | L71: =IF(EDV_11_2016[Vidange]="",EDV_11_2016[Capacité des fûts]*EDV_11_2016[Nombre],EDV_11_2016[[#This Row],[Vidange]]) -> 7.1 | M71: 0.707 | N71: =ROUND(EDV_11_2016[Vol total (HL)]*EDV_11_2016[Degré],4) -> 5.0197
D72: GC | E72: STE | F72: 15 | G72: H | H72: STE 2 | I72: VID/4,10 | J72: 1 | K72: 2.08 | L72: =IF(EDV_11_2016[Vidange]="",EDV_11_2016[Capacité des fûts]*EDV_11_2016[Nombre],EDV_11_2016[[#This Row],[Vidange]]) -> 2.08 | M72: 0.713 | N72: =ROUND(EDV_11_2016[Vol total (HL)]*EDV_11_2016[Degré],4) -> 1.483
B73: 53.208 | D73: GC | E73: STE | F73: 15 | G73: H | H73: STE 2 | I73: 4.03 | J73: 18 | L73: =IF(EDV_11_2016[Vidange]="",EDV_11_2016[Capacité des fûts]*EDV_11_2016[Nombre],EDV_11_2016[[#This Row],[Vidange]]) -> 72.54 | M73: 0.713 | N73: =ROUND(EDV_11_2016[Vol total (HL)]*EDV_11_2016[Degré],4) -> 51.721
D74: GC | E74: STE | F74: 15 | G74: RM | H74: STE 1 | I74: VID/3,55 | J74: 1 | K74: 2.64 | L74: =IF(EDV_11_2016[Vidange]="",EDV_11_2016[Capacité des fûts]*EDV_11_2016[Nombre],EDV_11_2016[[#This Row],[Vidange]]) -> 2.64 | M74: 0.708 | N74: =ROUND(EDV_11_2016[Vol total (HL)]*EDV_11_2016[Degré],4) -> 1.8691
B75: 45.5251 | D75: GC | E75: STE | F75: 15 | G75: RM | H75: STE 1 | I75: 3.65 | J75: 3 | L75: =IF(EDV_11_2016[Vidange]="",EDV_11_2016[Capacité des fûts]*EDV_11_2016[Nombre],EDV_11_2016[[#This Row],[Vidange]]) -> 10.95 | M75: 0.708 | N75: =ROUND(EDV_11_2016[Vol total (HL)]*EDV_11_2016[Degré],4) -> 7.7526
D76: GC | E76: STE | F76: 15 | G76: RM | H76: STE 1 | I76: 3.6 | J76: 4 | L76: =IF(EDV_11_2016[Vidange]="",EDV_11_2016[Capacité des fûts]*EDV_11_2016[Nombre],EDV_11_2016[[#This Row],[Vidange]]) -> 14.4 | M76: 0.708 | N76: =ROUND(EDV_11_2016[Vol total (HL)]*EDV_11_2016[Degré],4) -> 10.1952
D77: GC | E77: STE | F77: 15 | G77: RM | H77: STE 1 | I77: 3.55 | J77: 6 | L77: =IF(EDV_11_2016[Vidange]="",EDV_11_2016[Capacité des fûts]*EDV_11_2016[Nombre],EDV_11_2016[[#This Row],[Vidange]]) -> 21.3 | M77: 0.708 | N77: =ROUND(EDV_11_2016[Vol total (HL)]*EDV_11_2016[Degré],4) -> 15.0804
D78: GC | E78: STE | F78: 15 | G78: RM | H78: STE 1 | I78: 3.5 | J78: 4 | L78: =IF(EDV_11_2016[Vidange]="",EDV_11_2016[Capacité des fûts]*EDV_11_2016[Nombre],EDV_11_2016[[#This Row],[Vidange]]) -> 14 | M78: 0.708 | N78: =ROUND(EDV_11_2016[Vol total (HL)]*EDV_11_2016[Degré],4) -> 9.912
B79: =SUBTOTAL(109,EDV_11_2016[Doit rester]) -> 882.787 | J79: =SUBTOTAL(109,EDV_11_2016[Nombre]) -> 342 | L79: =SUBTOTAL(109,EDV_11_2016[Vol total (HL)]) -> 1276.3 | N79: =SUBTOTAL(109,EDV_11_2016[Sous-total AP]) -> 920.3164 | O79: =SUBTOTAL(109,EDV_11_2016[RG]) -> 12.2543
